bitfinex/quotes_BTCUSD_20240817
["timestamp","ask_amount","ask_price","bid_price","bid_amount"]
[1723904838414,0.000825,59407.0,59406.0,4.33580547]
[1723904839032,0.000825,59407.0,59406.0,4.18457371]
[1723904839455,0.000825,59407.0,59406.0,4.33580561]
[1723904840611,0.000825,59407.0,59406.0,4.18457371]
[1723904841098,0.000825,59407.0,59406.0,4.18456154]
[1723904841469,0.000825,59407.0,59406.0,4.33577785]
[1723904841690,1e-08,59407.0,59406.0,4.33577785]
[1723904841897,1e-08,59407.0,59406.0,4.26126388]
[1723904842025,1e-08,59407.0,59406.0,4.33577092]
[1723904842437,1e-08,59407.0,59406.0,4.18455461]
[1723904843358,1e-08,59407.0,59406.0,3.66181722]
[1723904843555,1e-08,59407.0,59406.0,4.33578635]
[1723904844336,1e-08,59407.0,59406.0,4.3357697]
[1723904845562,1e-08,59407.0,59406.0,4.33576746]
[1723904846579,1e-08,59407.0,59406.0,4.33576639]
[1723904847579,1e-08,59407.0,59406.0,4.33576631]
[1723904848697,1e-08,59407.0,59406.0,4.18456699]
[1723904848919,1e-08,59407.0,59406.0,4.33576631]
[1723904849323,1e-08,59407.0,59406.0,4.335757]
[1723904849872,1e-08,59407.0,59406.0,4.33575778]
[1723904850215,1e-08,59407.0,59406.0,4.29021351]
[1723904850413,1e-08,59407.0,59406.0,4.18455514]
[1723904852267,1e-08,59407.0,59406.0,4.25217519]
[1723904853835,1e-08,59407.0,59406.0,4.18455514]
[1723904854481,1e-08,59407.0,59406.0,4.15797867]
[1723904854724,1e-08,59407.0,59406.0,4.2521564]
[1723904856747,0.0813,59414.0,59413.0,0.977841]
[1723904856955,0.061825,59417.0,59416.0,0.378685]
[1723904857106,0.000825,59420.0,59419.0,0.63111]
[1723904857306,0.000825,59420.0,59419.0,2.18143787]
[1723904858450,0.000825,59420.0,59419.0,2.15246549]
[1723904858651,0.000825,59420.0,59419.0,2.18143458]
[1723904858812,0.000825,59420.0,59419.0,2.18443458]
[1723904860010,0.081825,59420.0,59419.0,2.18443458]
[1723904860213,0.126203,59428.0,59424.0,0.126211]
[1723904860441,0.126203,59428.0,59425.0,0.02135549]
[1723904860615,0.126203,59428.0,59424.0,0.126211]
[1723904860826,0.126203,59428.0,59427.0,1.5]
[1723904861052,0.126203,59428.0,59427.0,1.52135483]
[1723904861460,0.128203,59428.0,59427.0,1.52135483]
[1723904861680,0.126203,59428.0,59427.0,1.52135483]
[1723904862102,0.380609,59428.0,59427.0,1.52135483]
[1723904862300,0.128203,59428.0,59427.0,1.52135483]
[1723904862498,0.380609,59428.0,59427.0,1.52135483]
[1723904862796,0.380609,59428.0,59427.0,1.5]
[1723904863202,0.270703,59428.0,59427.0,1.5]
[1723904863588,0.270703,59428.0,59427.0,1.52135686]
[1723904863926,0.270703,59428.0,59427.0,1.5]
[1723904864330,0.270703,59428.0,59427.0,1.52135643]
[1723904864554,0.523109,59428.0,59427.0,1.52135643]
[1723904865004,0.270703,59428.0,59427.0,1.52135643]
[1723904870878,0.523109,59428.0,59427.0,1.5]
[1723904871516,0.270703,59428.0,59427.0,1.5]
[1723904871727,0.523109,59428.0,59427.0,1.5]
[1723904872148,0.270703,59428.0,59427.0,1.5]
[1723904872961,0.271527,59428.0,59427.0,1.5]
[1723904873799,1.45270554,59428.0,59427.0,1.5]
[1723904874009,1.57905077,59428.0,59427.0,1.5]
[1723904875373,1.58912177,59428.0,59427.0,1.5]
[1723904876034,1.58712177,59428.0,59427.0,1.5]
[1723904876466,1.59512177,59428.0,59427.0,1.501]
[1723904876671,1.71327092,59428.0,59427.0,1.5]
[1723904877091,1.59512177,59428.0,59427.0,1.501]
[1723904877501,1.71323394,59428.0,59427.0,1.5]
[1723904877712,1.71323394,59428.0,59427.0,1.501]
[1723904877713,1.56802794,59428.0,59427.0,1.501]
[1723904877919,1.34771577,59428.0,59427.0,1.501]
[1723904878120,1.38516073,59428.0,59427.0,1.5]
[1723904878330,1.29249954,59428.0,59427.0,1.5]
[1723904878979,1.31884619,59428.0,59427.0,1.5]
[1723904879182,1.29249954,59428.0,59427.0,1.5]
[1723904879589,1.33284687,59428.0,59427.0,1.5]
[1723904879815,1.30649954,59428.0,59427.0,1.5]
[1723904880239,1.29249954,59428.0,59427.0,1.5]
[1723904881055,1.30649954,59428.0,59427.0,1.5]
[1723904886155,1.21229954,59428.0,59427.0,1.5]
[1723904886365,1.30649954,59428.0,59427.0,1.5]
[1723904892805,1.32049954,59428.0,59427.0,1.501]
[1723904908408,1.34684446,59428.0,59427.0,1.501]
[1723904908613,1.32049954,59428.0,59427.0,1.501]
[1723904909466,1.34684438,59428.0,59427.0,1.501]
[1723904910720,1.32049954,59428.0,59427.0,1.501]
[1723904911367,1.34684375,59428.0,59427.0,1.501]
[1723904923303,1.25478865,59428.0,59427.0,1.501]
[1723904923547,1.24078865,59428.0,59427.0,1.5]
[1723904923873,1.22678865,59428.0,59427.0,1.501]
[1723904924117,1.24078865,59428.0,59427.0,1.501]
[1723904924329,1.25478865,59428.0,59427.0,1.501]
[1723904924783,1.24078865,59428.0,59427.0,1.501]
[1723904925010,1.19034375,59428.0,59427.0,1.501]
[1723904925261,1.20234375,59428.0,59427.0,1.501]
[1723904925495,1.2780111,59428.0,59427.0,1.501]
[1723904925726,1.44653355,59428.0,59427.0,1.501]
[1723904925942,1.33164375,59428.0,59427.0,1.5]
[1723904926165,1.34364375,59428.0,59427.0,1.501]
[1723904927509,1.47003602,59428.0,59427.0,1.501]
[1723904927753,1.72244202,59428.0,59427.0,1.501]
[1723904927972,1.87060429,59428.0,59427.0,1.501]
[1723904928438,1.85069189,59428.0,59427.0,1.501]
[1723904929344,1.69904975,59428.0,59427.0,1.501]
[1723904929803,1.69604975,59428.0,59427.0,1.501]
[1723904932150,1.69904975,59428.0,59427.0,1.501]
[1723904933202,1.69604975,59428.0,59427.0,1.501]
[1723904934993,1.69704975,59428.0,59427.0,1.501]
[1723904935179,1.69604975,59428.0,59427.0,1.501]
[1723904935434,1.60184975,59428.0,59427.0,1.501]
[1723904936543,1.69604975,59428.0,59427.0,1.501]
[1723904936753,1.8222751,59428.0,59427.0,1.501]
[1723904938184,1.82227062,59428.0,59427.0,1.501]
[1723904938398,1.82227062,59428.0,59427.0,0.001]
[1723904938399,1.69604975,59428.0,59427.0,0.001]
[1723904938643,1.82226595,59428.0,59427.0,0.001]
[1723904938881,1.69604975,59428.0,59427.0,1.501]
[1723904940337,1.79701332,59428.0,59427.0,1.501]
[1723904940767,1.69604975,59428.0,59427.0,1.501]
[1723904943541,1.82224892,59428.0,59427.0,1.501]
[1723904943745,1.69604975,59428.0,59427.0,1.501]
[1723904943954,1.82224821,59428.0,59427.0,1.501]
[1723904944344,1.69604975,59428.0,59427.0,1.501]
[1723904944733,1.82224786,59428.0,59427.0,1.501]
[1723904945335,1.82224325,59428.0,59427.0,1.501]
[1723904946906,1.95145575,59428.0,59427.0,1.501]
[1723904947173,1.95145575,59428.0,59420.0,0.0009064]
[1723904947174,0.03,59421.0,59420.0,0.0009064]
[1723904947431,1.85845704,59421.0,59420.0,0.0009064]
[1723904947668,1.88369712,59421.0,59420.0,0.0009064]
[1723904948144,1.97889712,59421.0,59420.0,0.0009064]
[1723904948362,1.72846112,59421.0,59420.0,0.0009064]
[1723904948574,1.60226075,59421.0,59420.0,0.0009064]
[1723904948779,1.61426075,59421.0,59420.0,0.0009064]
[1723904949197,2.04025129,59421.0,59420.0,0.0009064]
[1723904949406,2.17525129,59421.0,59420.0,0.0009064]
[1723904950979,2.01383119,59421.0,59420.0,0.0009064]
[1723904952525,1.855122,59407.0,59406.0,4e-07]
[1723904952740,2.12968557,59407.0,59406.0,4e-07]
[1723904952950,2.30213017,59407.0,59406.0,4e-07]
[1723904953157,2.17602075,59407.0,59406.0,4e-07]
[1723904953565,2.27685785,59407.0,59406.0,4e-07]
[1723904953976,2.27885785,59407.0,59406.0,4e-07]
[1723904954178,2.45041239,59407.0,59406.0,4e-07]
[1723904954396,2.27685785,59407.0,59406.0,4e-07]
[1723904954603,2.25161556,59407.0,59406.0,4e-07]
[1723904954817,2.17802075,59407.0,59406.0,4e-07]
[1723904955020,2.28893496,59407.0,59406.0,4e-07]
[1723904955220,2.3596524,59407.0,59406.0,4e-07]
[1723904955421,2.3736524,59407.0,59406.0,4e-07]
[1723904955752,2.3756524,59407.0,59406.0,4e-07]
[1723904955966,2.42603042,59407.0,59406.0,4e-07]
[1723904956169,2.26447588,59407.0,59406.0,4e-07]
[1723904956385,1.70220286,59407.0,59406.0,4e-07]
[1723904957211,1.70320286,59407.0,59406.0,4e-07]
[1723904957412,1.79740286,59407.0,59406.0,4e-07]
[1723904959161,1.79640286,59407.0,59406.0,4e-07]
[1723904959646,1.77005865,59407.0,59406.0,4e-07]
[1723904961315,1.79641656,59407.0,59406.0,4e-07]
[1723904961568,1.9689711,59407.0,59406.0,4e-07]
[1723904962036,2.0519711,59407.0,59406.0,4e-07]
[1723904962887,2.1126711,59407.0,59406.0,4e-07]
[1723904964622,2.1166711,59407.0,59406.0,4e-07]
[1723904965227,2.1841521,59407.0,59406.0,4e-07]
[1723904965786,2.1809771,59407.0,59406.0,4e-07]
[1723904965990,2.00942256,59407.0,59406.0,4e-07]
[1723904968653,1.86572256,59407.0,59406.0,4e-07]
[1723904969000,1.86472256,59407.0,59406.0,4e-07]
[1723904970301,1.83836465,59407.0,59406.0,4e-07]
[1723904970451,1.77088365,59407.0,59406.0,4e-07]
[1723904972343,1.89013882,59407.0,59406.0,4e-07]
[1723904973012,1.77088365,59407.0,59406.0,4e-07]
[1723904974485,1.79724106,59407.0,59406.0,4e-07]
[1723904976000,1.77088365,59407.0,59406.0,4e-07]
[1723904976407,1.21411154,59407.0,59406.0,0.1464004]
[1723904976605,1.20831154,59407.0,59406.0,0.1464004]
[1723904976977,1.20831154,59407.0,59406.0,1.6464004]
[1723904977677,0.95581654,59407.0,59406.0,1.6464004]
[1723904978511,0.94181654,59407.0,59406.0,1.6464004]
[1723904978895,0.057825,59407.0,59406.0,1.6464004]
[1723904979099,0.170072,59407.0,59406.0,1.6464004]
[1723904979333,0.043825,59407.0,59406.0,1.6464004]
[1723904979676,0.422567,59407.0,59406.0,1.6464004]
[1723904979880,0.170072,59407.0,59406.0,1.6464004]
[1723904980089,0.181072,59407.0,59406.0,1.6464004]
[1723904980299,0.420567,59407.0,59406.0,1.6464004]
[1723904980504,0.409567,59407.0,59406.0,1.6464004]
[1723904981331,0.662062,59407.0,59406.0,1.6464004]
[1723904981534,0.83361654,59407.0,59406.0,1.6464004]
[1723904982330,0.83761654,59407.0,59406.0,1.6464004]
[1723904982559,0.83961654,59407.0,59406.0,1.6464004]
[1723904982768,0.83561654,59407.0,59406.0,1.6464004]
[1723904983177,0.83361654,59407.0,59406.0,1.6464004]
[1723904983576,0.84361654,59407.0,59406.0,1.6464004]
[1723904983812,0.85161654,59407.0,59406.0,1.6464004]
[1723904984024,0.84161654,59407.0,59406.0,1.6464004]
[1723904984234,0.83361654,59407.0,59406.0,1.6464004]
[1723904984438,0.84261654,59407.0,59406.0,1.6464004]
[1723904984640,0.418567,59407.0,59406.0,1.6464004]
[1723904985690,0.425567,59407.0,59406.0,1.6464004]
[1723904991721,0.678062,59407.0,59406.0,1.6464004]
[1723904991937,0.425567,59407.0,59406.0,1.6464004]
[1723904998814,0.395567,59407.0,59406.0,1.6464004]
[1723904999018,0.425567,59407.0,59406.0,1.6464004]
[1723905003301,0.519767,59407.0,59406.0,1.6464004]
[1723905005441,0.94381654,59407.0,59406.0,1.5825004]
[1723905006470,0.94381654,59407.0,59406.0,1.5000004]
[1723905006471,1.02491654,59407.0,59406.0,1.5000004]
[1723905006680,1.11487201,59407.0,59406.0,1.5000004]
[1723905006892,1.36736701,59407.0,59406.0,1.5000004]
[1723905007319,1.36036701,59407.0,59406.0,1.5000004]
[1723905008878,1.37063335,59407.0,59406.0,1.5000004]
[1723905009119,1.47063335,59407.0,59406.0,1.5000004]
[1723905009338,1.72504131,59407.0,59406.0,4e-07]
[1723905009584,2.35417789,59407.0,59406.0,4e-07]
[1723905009825,1.029478,59404.0,59403.0,0.0009075]
[1723905010071,1.69709601,59404.0,59403.0,0.0009075]
[1723905010295,1.94960401,59404.0,59403.0,0.0009075]
[1723905011368,1.95160401,59404.0,59403.0,0.0009075]
[1723905011788,1.94960401,59404.0,59403.0,0.0009075]
[1723905012641,1.96260401,59404.0,59403.0,0.0009075]
[1723905012847,1.97660401,59404.0,59403.0,0.0009075]
[1723905013061,1.97860401,59404.0,59403.0,0.0009075]
[1723905014352,1.97660401,59404.0,59403.0,0.0009075]
[1723905014566,1.97860401,59404.0,59403.0,0.0009075]
[1723905016675,1.98060401,59404.0,59403.0,0.0009075]
[1723905017487,2.10650683,59404.0,59403.0,0.0009075]
[1723905018835,1.98060401,59404.0,59403.0,0.0009075]
[1723905019508,2.10645895,59404.0,59403.0,0.0009075]
[1723905019988,2.08128875,59404.0,59403.0,0.0009075]
[1723905020188,2.10645371,59404.0,59403.0,0.0009075]
[1723905020392,1.98060401,59404.0,59403.0,0.0009075]
[1723905020595,2.15810401,59404.0,59403.0,0.0009075]
[1723905020798,2.10645371,59404.0,59403.0,0.0009075]
[1723905020999,2.27800825,59404.0,59403.0,0.0009075]
[1723905021408,2.15215855,59404.0,59403.0,0.0009075]
[1723905021612,2.27796016,59404.0,59403.0,0.0009075]
[1723905021814,2.15890755,59404.0,59403.0,0.0009075]
[1723905022020,2.25954947,59404.0,59403.0,0.0009075]
[1723905023713,2.15890755,59404.0,59403.0,0.0009075]
[1723905025365,2.2343613,59404.0,59403.0,0.0009075]
[1723905025587,1.54439876,59404.0,59403.0,0.0009075]
[1723905025800,1.46894501,59404.0,59403.0,0.0009075]
[1723905026455,1.46794501,59404.0,59403.0,0.0009075]
[1723905026661,1.08908154,59404.0,59403.0,0.1422075]
[1723905027299,1.18328154,59404.0,59403.0,1.6422075]
[1723905027516,1.17653254,59404.0,59403.0,1.6422075]
[1723905037251,1.08233254,59404.0,59403.0,1.6422075]
[1723905039700,1.17653254,59404.0,59403.0,1.6422075]
[1723905040281,0.153254,59404.0,59403.0,1.6422075]
[1723905041908,0.139254,59404.0,59403.0,1.6422075]
[1723905042117,0.153254,59404.0,59403.0,1.6422075]
[1723905042543,0.126254,59404.0,59403.0,1.6422075]
[1723905042718,0.133254,59404.0,59403.0,1.6422075]
[1723905042918,0.146254,59404.0,59403.0,1.6422075]
[1723905043317,0.133254,59404.0,59403.0,1.6422075]
[1723905043764,0.138254,59404.0,59403.0,1.6422075]
[1723905045028,0.012,59404.0,59403.0,1.6422075]
[1723905045636,0.138254,59404.0,59403.0,1.6422075]
[1723905049315,0.012,59404.0,59403.0,1.6422075]
[1723905049520,0.138254,59404.0,59403.0,1.6422075]
[1723905055337,0.390762,59404.0,59403.0,1.6422075]
[1723905059455,0.138254,59404.0,59403.0,1.6422075]
[1723905059686,0.012,59404.0,59403.0,1.6422075]
[1723905060702,0.138254,59404.0,59403.0,1.6422075]
[1723905061583,0.012,59404.0,59403.0,1.6422075]
[1723905062228,0.012,59404.0,59403.0,1.66358132]
[1723905062424,0.012,59404.0,59403.0,1.6422075]
[1723905063175,0.138254,59404.0,59403.0,1.6422075]
[1723905065117,0.138254,59404.0,59403.0,1.66358139]
[1723905065921,0.138254,59404.0,59403.0,1.6422075]
[1723905066267,0.012,59404.0,59403.0,1.6422075]
[1723905066386,0.012,59404.0,59403.0,1.66358145]
[1723905067003,0.005,59404.0,59403.0,1.66358145]
[1723905067594,0.01,59404.0,59403.0,1.66358145]
[1723905067785,0.126252,59405.0,59403.0,1.6422075]
[1723905067903,0.003,59404.0,59403.0,1.6422075]
[1723905068106,0.006,59404.0,59403.0,1.6422075]
[1723905068503,0.003,59404.0,59403.0,1.6422075]
[1723905068733,0.003,59404.0,59403.0,1.66358148]
[1723905068935,0.004,59404.0,59403.0,1.66358148]
[1723905069139,0.004,59404.0,59403.0,1.6422075]
[1723905069342,0.004,59404.0,59403.0,1.66358166]
[1723905074148,0.224454,59404.0,59403.0,1.66358166]
[1723905074354,0.476962,59404.0,59403.0,1.6422075]
[1723905075407,0.382762,59404.0,59403.0,1.6422075]
[1723905075551,0.130254,59404.0,59403.0,1.6422075]
[1723905076394,0.130254,59404.0,59403.0,1.66358173]
[1723905076794,0.130254,59404.0,59403.0,1.6422075]
[1723905076993,0.004,59404.0,59403.0,1.66358173]
[1723905077483,0.000825,59406.0,59405.0,0.526054]
[1723905077678,0.000825,59406.0,59405.0,0.38912523]
[1723905077880,0.000825,59406.0,59405.0,0.64162823]
[1723905078014,0.000825,59406.0,59405.0,2.39413123]
[1723905078627,0.002825,59406.0,59405.0,2.39413123]
[1723905079430,0.002825,59406.0,59405.0,2.39412891]
[1723905079838,0.002825,59406.0,59405.0,2.64663191]
[1723905080066,0.002825,59406.0,59405.0,2.64963191]
[1723905080272,0.002825,59406.0,59405.0,2.92118645]
[1723905080486,0.000825,59406.0,59405.0,3.34662981]
[1723905080695,0.000825,59406.0,59405.0,3.35590222]
[1723905081119,0.000825,59406.0,59405.0,3.35290222]
[1723905081322,0.000825,59406.0,59405.0,3.35590222]
[1723905081876,0.001825,59406.0,59405.0,3.35790222]
[1723905082295,0.002825,59406.0,59405.0,3.48698219]
[1723905083410,0.002825,59406.0,59405.0,3.36090222]
[1723905083661,0.002825,59406.0,59405.0,3.36088138]
[1723905084423,0.002825,59406.0,59405.0,3.45241196]
[1723905084665,0.002825,59406.0,59405.0,3.70691496]
[1723905084903,0.002825,59406.0,59405.0,3.74146426]
[1723905085157,0.002825,59406.0,59405.0,3.61538429]
[1723905085391,1e-08,59406.0,59405.0,3.61538429]
[1723905086570,0.00082501,59406.0,59405.0,3.61338429]
[1723905086813,0.00082501,59406.0,59405.0,3.73924862]
[1723905087321,0.00082501,59406.0,59405.0,3.73619631]
[1723905087322,0.000825,59406.0,59405.0,3.73619631]
[1723905087550,0.001825,59406.0,59405.0,3.37275415]
[1723905087794,0.001825,59406.0,59405.0,3.74616255]
[1723905088029,0.002825,59406.0,59405.0,3.76012874]
[1723905088497,0.002825,59406.0,59405.0,3.63430044]
[1723905088724,0.002825,59406.0,59405.0,3.63430043]
[1723905089449,0.002825,59406.0,59405.0,3.73493606]
[1723905089682,0.002825,59406.0,59405.0,3.63430043]
[1723905090620,0.002825,59406.0,59405.0,3.73491804]
[1723905091764,0.002825,59406.0,59405.0,3.73489918]
[1723905092176,0.002825,59406.0,59405.0,3.73490179]
[1723905092393,0.002825,59406.0,59405.0,3.63429995]
[1723905094035,0.002825,59406.0,59405.0,3.70973446]
[1723905094233,0.002825,59406.0,59405.0,3.63429995]
[1723905094472,0.002825,59406.0,59405.0,3.70972625]
[1723905096364,0.002825,59406.0,59405.0,3.688375]
[1723905096567,0.002825,59406.0,59405.0,3.70972509]
[1723905098606,0.002825,59406.0,59405.0,3.71063259]
[1723905099118,0.002825,59406.0,59405.0,3.68072174]
[1723905099525,0.000825,59407.0,59406.0,1.280345]
[1723905099741,0.000825,59407.0,59406.0,2.05339624]
[1723905099946,0.000825,59407.0,59406.0,2.26037979]
[1723905100154,0.000825,59407.0,59406.0,3.76037979]
[1723905100361,1e-08,59407.0,59406.0,3.80589524]
[1723905100780,0.00100001,59407.0,59406.0,4.5948128]
[1723905100984,0.04991675,59422.0,59421.0,0.888526]
[1723905101193,0.51177509,59426.0,59425.0,0.785547]
[1723905101394,0.000824,59428.0,59427.0,0.378615]
[1723905101603,0.000824,59428.0,59427.0,1.878615]
[1723905102452,0.000824,59428.0,59427.0,2.131025]
[1723905102711,0.149624,59428.0,59427.0,1.52134213]
[1723905102929,0.149624,59428.0,59427.0,1.65154713]
[1723905103564,0.149624,59428.0,59427.0,1.630205]
[1723905104170,0.149624,59428.0,59427.0,1.634205]
[1723905104577,0.149624,59428.0,59427.0,1.508]
[1723905105191,0.149624,59428.0,59427.0,1.504]
[1723905105396,0.149624,59428.0,59427.0,1.5]
[1723905105604,0.151624,59428.0,59427.0,1.626205]
[1723905105813,0.149624,59428.0,59427.0,1.626205]
[1723905106836,0.149624,59428.0,59427.0,1.5]
[1723905107038,0.528233,59428.0,59427.0,1.5]
[1723905107240,0.149624,59428.0,59427.0,1.5]
[1723905107441,0.275827,59428.0,59427.0,1.5]
[1723905108071,0.622433,59428.0,59427.0,1.5]
[1723905108471,0.624433,59428.0,59427.0,1.5]
[1723905108674,0.622433,59428.0,59427.0,1.5]
[1723905109012,0.623433,59428.0,59427.0,1.5]
[1723905113624,0.529233,59428.0,59427.0,1.5]
[1723905118438,0.276827,59428.0,59427.0,1.5]
[1723905118591,0.276827,59428.0,59427.0,1.5213482]
[1723905118791,0.150624,59428.0,59427.0,1.5213482]
[1723905119571,0.276827,59428.0,59427.0,1.5213482]
[1723905119771,0.150624,59428.0,59427.0,1.6475532]
[1723905120022,0.001824,59428.0,59427.0,1.7937532]
[1723905120225,0.001824,59428.0,59427.0,2.2985732]
[1723905120589,0.001824,59428.0,59427.0,2.6451832]
[1723905120999,0.001824,59428.0,59427.0,2.623835]
[1723905121195,0.001824,59428.0,59427.0,2.64517625]
[1723905121817,0.000824,59428.0,59427.0,2.64517625]
[1723905122226,0.000824,59428.0,59427.0,2.65217625]
[1723905123512,0.000824,59428.0,59427.0,2.7024791]
[1723905123934,0.000824,59428.0,59427.0,2.70260189]
[1723905124155,0.000824,59428.0,59427.0,2.65217625]
[1723905124453,0.000824,59428.0,59427.0,2.70960189]
[1723905124873,0.000824,59428.0,59427.0,2.65917625]
[1723905125077,0.000824,59428.0,59427.0,2.637835]
[1723905125295,0.000824,59428.0,59427.0,2.6591883]
[1723905126145,0.000824,59428.0,59427.0,2.70961394]
[1723905127194,0.000824,59428.0,59427.0,3.68333131]
[1723905127426,0.000824,59428.0,59427.0,3.61144045]
[1723905127631,0.000824,59428.0,59427.0,3.62270358]
[1723905128590,0.000824,59428.0,59427.0,3.61866782]
[1723905128833,0.000824,59428.0,59427.0,3.74465102]
[1723905129588,0.000824,59428.0,59427.0,3.70642064]
[1723905129799,0.000824,59428.0,59427.0,3.73537922]
[1723905130618,0.000824,59428.0,59427.0,3.60939602]
[1723905131574,0.000824,59428.0,59427.0,3.71212377]
[1723905131772,0.000824,59428.0,59427.0,3.61339503]
[1723905132174,1e-08,59428.0,59427.0,3.62265676]
[1723905132582,1e-08,59428.0,59427.0,3.72010514]
[1723905133007,1e-08,59428.0,59427.0,3.66316043]
[1723905133221,1e-08,59428.0,59427.0,3.72208814]
[1723905133431,1e-08,59428.0,59427.0,3.65416043]
[1723905133872,1e-08,59428.0,59427.0,3.55835138]
[1723905134095,1e-08,59428.0,59427.0,3.65414996]
[1723905134310,1e-08,59428.0,59427.0,4.59432118]
[1723905134519,1e-08,59428.0,59427.0,3.67714996]
[1723905134721,1e-08,59428.0,59427.0,3.66814996]
[1723905135136,1e-08,59428.0,59427.0,3.68215235]
[1723905135548,1e-08,59428.0,59427.0,3.66815235]
[1723905135757,1e-08,59428.0,59427.0,3.65415235]
[1723905135965,1e-08,59428.0,59427.0,3.92056235]
[1723905136169,1e-08,59428.0,59427.0,3.93451222]
[1723905136576,1e-08,59428.0,59427.0,3.92051222]
[1723905136788,0.000825,59433.0,59432.0,0.005]
[1723905136982,0.000825,59433.0,59432.0,1.71815992]
[1723905137352,0.000825,59433.0,59432.0,2.10390242]
[1723905137576,0.000825,59433.0,59432.0,3.85629142]
[1723905137999,0.000825,59433.0,59432.0,3.90178615]
[1723905138216,1e-06,59433.0,59432.0,4.24795964]
[1723905138435,0.2,59439.0,59438.0,1.534596]
[1723905138637,0.000825,59449.0,59448.0,0.635802]
[1723905138785,0.000825,59449.0,59448.0,1.61532909]
[1723905138994,0.000825,59449.0,59448.0,1.68813434]
[1723905139338,0.000825,59449.0,59448.0,3.18813434]
[1723905140057,0.000825,59449.0,59448.0,3.20213434]
[1723905140273,0.000825,59449.0,59448.0,3.2310695]
[1723905140455,0.000825,59449.0,59448.0,3.20213434]
[1723905140701,0.000825,59449.0,59448.0,2.96381334]
[1723905141736,0.000825,59449.0,59448.0,2.96581334]
[1723905142345,0.000825,59449.0,59448.0,3.20413434]
[1723905142476,0.000825,59449.0,59448.0,2.95381334]
[1723905143095,0.000825,59449.0,59448.0,2.96381334]
[1723905144579,0.000825,59449.0,59448.0,2.96581334]
[1723905144774,0.000825,59449.0,59448.0,2.96781334]
[1723905145354,0.000825,59449.0,59448.0,3.22013434]
[1723905145739,0.000825,59449.0,59448.0,2.96381334]
[1723905146333,0.000825,59449.0,59448.0,2.84827754]
[1723905146534,0.000825,59449.0,59448.0,2.940811]
[1723905148003,0.000825,59449.0,59448.0,2.963811]
[1723905148668,1e-08,59449.0,59448.0,2.963811]
[1723905149207,1e-08,59449.0,59448.0,2.899311]
[1723905150446,1e-08,59449.0,59448.0,2.8993149]
[1723905152440,1e-08,59449.0,59448.0,2.9638149]
[1723905154494,1e-08,59449.0,59448.0,2.96381374]
[1723905154875,1e-08,59449.0,59448.0,2.98514994]
[1723905155070,1e-08,59449.0,59448.0,2.96381374]
[1723905160492,1e-08,59449.0,59448.0,2.99276299]
[1723905162480,1e-08,59449.0,59448.0,3.25434281]
[1723905162693,1e-08,59449.0,59448.0,3.25634371]
[1723905162913,1e-08,59449.0,59448.0,3.25434371]
[1723905163756,0.000825,59456.0,59451.0,1.116278]
[1723905163890,0.000825,59456.0,59451.0,1.43216964]
[1723905164450,0.000825,59456.0,59451.0,2.97037698]
[1723905164599,0.000825,59456.0,59451.0,2.96111889]
[1723905164840,0.000825,59456.0,59451.0,2.91083254]
[1723905165007,0.000825,59456.0,59451.0,2.96111644]
[1723905165189,0.000825,59456.0,59451.0,2.98337454]
[1723905165392,0.000825,59456.0,59451.0,2.98537454]
[1723905165592,0.000825,59456.0,59451.0,2.98337454]
[1723905165864,0.000825,59456.0,59451.0,2.99371328]
[1723905166010,0.000825,59456.0,59451.0,3.00771328]
[1723905166428,0.000825,59456.0,59451.0,3.06662827]
[1723905166686,0.000825,59456.0,59451.0,3.03768082]
[1723905166806,0.000825,59456.0,59451.0,3.0666187]
[1723905167233,0.000825,59456.0,59451.0,3.06662103]
[1723905167463,0.000825,59456.0,59451.0,3.00770983]
[1723905167885,0.000825,59456.0,59451.0,3.00970983]
[1723905168106,0.000825,59456.0,59451.0,3.01170983]
[1723905168309,0.000825,59456.0,59451.0,3.26001783]
[1723905168489,0.000825,59456.0,59451.0,3.30551113]
[1723905170057,0.000825,59456.0,59451.0,3.35574278]
[1723905170258,0.0764,59454.0,59451.0,2.76417109]
[1723905170816,0.0764,59454.0,59451.0,2.75491362]
[1723905171373,0.142925,59452.0,59451.0,1.67448916]
[1723905171575,0.142925,59452.0,59451.0,1.54833516]
[1723905171754,0.521381,59452.0,59451.0,1.54833516]
[1723905171956,0.521381,59452.0,59451.0,1.527]
[1723905172159,0.521381,59452.0,59451.0,1.513]
[1723905172401,0.521381,59452.0,59451.0,1.5]
[1723905172619,0.269077,59452.0,59451.0,1.507]
[1723905172755,0.521381,59452.0,59451.0,1.507]
[1723905172963,0.521381,59452.0,59451.0,1.5]
[1723905173356,0.521381,59452.0,59451.0,1.507]
[1723905174947,0.521381,59452.0,59451.0,1.5]
[1723905175185,0.522381,59452.0,59451.0,1.5]
[1723905175590,0.523381,59452.0,59451.0,1.5]
[1723905175722,0.521381,59452.0,59451.0,1.5]
[1723905175924,0.269077,59452.0,59451.0,1.5]
[1723905176132,0.272077,59452.0,59451.0,1.5]
[1723905176755,0.272017,59452.0,59451.0,1.5]
[1723905178586,0.145865,59452.0,59451.0,1.5]
[1723905179311,0.272017,59452.0,59451.0,1.5]
[1723905181829,0.145865,59452.0,59451.0,1.5]
[1723905182036,0.144865,59452.0,59451.0,1.5]
[1723905183077,0.142865,59452.0,59451.0,1.5]
[1723905183448,0.144865,59452.0,59451.0,1.5]
[1723905184604,0.144865,59452.0,59451.0,1.626154]
[1723905184806,0.000825,59456.0,59455.0,0.126145]
[1723905185555,0.000825,59456.0,59455.0,1.626145]
[1723905185984,0.000825,59456.0,59455.0,1.878436]
[1723905186173,0.000825,59456.0,59455.0,1.89978188]
[1723905186929,0.000825,59456.0,59455.0,1.64749088]
[1723905187911,0.000825,59456.0,59455.0,1.626145]
[1723905188252,0.000825,59456.0,59455.0,1.64749625]
[1723905188654,0.000825,59456.0,59455.0,1.89978725]
[1723905189058,0.000825,59456.0,59455.0,2.15207825]
[1723905189666,0.000825,59456.0,59455.0,1.89978725]
[1723905189985,0.000825,59456.0,59455.0,1.89978709]